[Event "Live Chess"]
[Site "Chess.com"]
[Date "2023.05.20"]
[Round "-"]
[White "Driftboard"]
[Black "Brooms1989"]
[Result "0-1"]
[WhiteElo "807"]
[BlackElo "948"]
[TimeControl "300"]
[EndTime "9:21:45 PDT"]
[Termination "Brooms1989 won by checkmate"]

1. e4 {[%clk 0:04:59.3]} 1... e5 {[%clk 0:04:56.3]} 2. Nf3 {[%clk 0:04:57.8]}
2... Nc6 {[%clk 0:04:51.8]} 3. Nc3 {[%clk 0:04:57]} 3... Nf6 {[%clk 0:04:49.6]}
4. Bb5 {[%clk 0:04:55.9]} 4... a6 {[%clk 0:04:48]} 5. Bxc6 {[%clk 0:04:54.8]}
5... dxc6 {[%clk 0:04:45.9]} 6. d3 {[%clk 0:04:54.1]} 6... Bd6 {[%clk
0:04:40.5]} 7. Bg5 {[%clk 0:04:52.8]} 7... h6 {[%clk 0:04:39.5]} 8. Bxf6 {[%clk
0:04:51.2]} 8... Qxf6 {[%clk 0:04:38.1]} 9. O-O {[%clk 0:04:50.3]} 9... Bg4
{[%clk 0:04:36.3]} 10. h3 {[%clk 0:04:46]} 10... Bh5 {[%clk 0:04:34.4]} 11. Ne2
{[%clk 0:04:38.3]} 11... Bxf3 {[%clk 0:04:30]} 12. gxf3 {[%clk 0:04:36.8]} 12...
O-O-O {[%clk 0:04:28.5]} 13. Ng3 {[%clk 0:04:33.9]} 13... h5 {[%clk 0:04:25]}
14. Kg2 {[%clk 0:04:32.4]} 14... h4 {[%clk 0:04:23.9]} 15. Nf5 {[%clk
0:04:29.3]} 15... g6 {[%clk 0:04:19.2]} 16. Nxd6+ {[%clk 0:04:27]} 16... Rxd6
{[%clk 0:04:19.1]} 17. Qd2 {[%clk 0:04:24.5]} 17... g5 {[%clk 0:04:14.4]} 18.
Kh2 {[%clk 0:04:20.2]} 18... Qg7 {[%clk 0:04:04.7]} 19. Rg1 {[%clk 0:04:18.8]}
19... Rg6 {[%clk 0:04:03.4]} 20. Qe3 {[%clk 0:04:14.7]} 20... f6 {[%clk
0:03:37.5]} 21. Qa7 {[%clk 0:04:10.8]} 21... g4 {[%clk 0:03:25.7]} 22. fxg4
{[%clk 0:04:08.6]} 22... Qh6 {[%clk 0:03:17.5]} 23. Qa8+ {[%clk 0:04:02.4]}
23... Kd7 {[%clk 0:03:16.4]} 24. Qxb7 {[%clk 0:04:00.9]} 24... Qf4+ {[%clk
0:03:14.5]} 25. Kg2 {[%clk 0:03:55.1]} 25... Rhg8 {[%clk 0:03:05.7]} 26. Qxa6
{[%clk 0:03:49.4]} 26... Rxg4+ {[%clk 0:03:03.2]} 27. hxg4 {[%clk 0:03:47.3]}
27... Rxg4+ {[%clk 0:03:03.1]} 28. Kf1 {[%clk 0:03:45.5]} 28... Rxg1+ {[%clk
0:02:57.9]} 29. Kxg1 {[%clk 0:03:43.8]} 29... h3 {[%clk 0:02:54]} 30. Kh1 {[%clk
0:03:41.2]} 30... Qf3+ {[%clk 0:02:47.7]} 31. Kh2 {[%clk 0:03:36.3]} 31... Qg2#
{[%clk 0:02:46.3]} 0-1

[Event "Live Chess"]
[Site "Chess.com"]
[Date "2023.05.20"]
[Round "-"]
[White "matt1979"]
[Black "OceanFloater"]
[Result "1-0"]
[WhiteElo "1485"]
[BlackElo "969"]
[TimeControl "300"]
[EndTime "9:21:53 PDT"]
[Termination "matt1979 won on time"]

1. f4 {[%clk 0:04:58.4]} 1... c6 {[%clk 0:04:59.1]} 2. Nf3 {[%clk 0:04:54.2]}
2... d5 {[%clk 0:04:57.5]} 3. e3 {[%clk 0:04:52.5]} 3... Bf5 {[%clk 0:04:54.5]}
4. d3 {[%clk 0:04:50.3]} 4... Nf6 {[%clk 0:04:48.4]} 5. Be2 {[%clk 0:04:48.8]}
5... e6 {[%clk 0:04:26.9]} 6. Nh4 {[%clk 0:04:42.2]} 6... Bg4 {[%clk 0:04:18.7]}
7. Bxg4 {[%clk 0:04:40.1]} 7... Nxg4 {[%clk 0:04:17.3]} 8. Qxg4 {[%clk
0:04:38.7]} 8... Qa5+ {[%clk 0:04:11.1]} 9. c3 {[%clk 0:04:36.3]} 9... g6 {[%clk
0:04:03.8]} 10. O-O {[%clk 0:04:32]} 10... Nd7 {[%clk 0:03:57.5]} 11. Bd2 {[%clk
0:04:28.1]} 11... Nf6 {[%clk 0:03:48.9]} 12. Qg3 {[%clk 0:04:25.5]} 12... Bh6
{[%clk 0:03:42]} 13. c4 {[%clk 0:04:20.1]} 13... Qc5 {[%clk 0:03:38.4]} 14. Nf3
{[%clk 0:04:07.5]} 14... O-O {[%clk 0:03:23.3]} 15. a3 {[%clk 0:04:05.9]} 15...
dxc4 {[%clk 0:03:13.2]} 16. Ne5 {[%clk 0:03:52.7]} 16... cxd3 {[%clk 0:03:01]}
17. Nxd3 {[%clk 0:03:48.7]} 17... Qb5 {[%clk 0:02:54.7]} 18. Ne5 {[%clk
0:03:36.7]} 18... Ne4 {[%clk 0:02:43]} 19. Qe1 {[%clk 0:03:19.7]} 19... Rad8
{[%clk 0:02:31.8]} 20. Bc3 {[%clk 0:03:14]} 20... Nxc3 {[%clk 0:02:12.4]} 21.
Qxc3 {[%clk 0:03:02.8]} 21... f6 {[%clk 0:02:09.8]} 22. Ng4 {[%clk 0:02:56.8]}
22... Bg7 {[%clk 0:02:05.1]} 23. Qb4 {[%clk 0:02:41]} 23... Qa6 {[%clk 0:01:33]}
24. Qb3 {[%clk 0:02:34.4]} 24... Rfe8 {[%clk 0:01:19.1]} 25. Nc3 {[%clk
0:02:32]} 25... b5 {[%clk 0:01:11.4]} 26. Rad1 {[%clk 0:02:25.4]} 26... f5
{[%clk 0:01:04.3]} 27. Rxd8 {[%clk 0:02:21.5]} 27... Rxd8 {[%clk 0:01:02.6]} 28.
Qxe6+ {[%clk 0:02:18.6]} 28... Kh8 {[%clk 0:01:00.4]} 29. Ne5 {[%clk 0:02:08.2]}
29... Rf8 {[%clk 0:00:47.2]} 30. Nf7+ {[%clk 0:02:05.3]} 30... Rxf7 {[%clk
0:00:43.2]} 31. Qxf7 {[%clk 0:02:03.8]} 31... Qc8 {[%clk 0:00:42]} 32. Rd1
{[%clk 0:01:56]} 32... a5 {[%clk 0:00:30.3]} 33. Qd7 {[%clk 0:01:54.1]} 33...
Qa8 {[%clk 0:00:19.3]} 34. Qd8+ {[%clk 0:01:51.7]} 34... Qxd8 {[%clk 0:00:17.9]}
35. Rxd8+ {[%clk 0:01:50]} 35... Bf8 {[%clk 0:00:16]} 36. Rxf8+ {[%clk
0:01:48.7]} 36... Kg7 {[%clk 0:00:15.7]} 37. Rc8 {[%clk 0:01:46.7]} 37... Kf6
{[%clk 0:00:15]} 38. Rxc6+ {[%clk 0:01:45.2]} 38... Kg7 {[%clk 0:00:14.7]} 39.
Nd5 {[%clk 0:01:27.5]} 39... Kh6 {[%clk 0:00:12.1]} 40. Nf6 {[%clk 0:01:23.2]}
40... Kg7 {[%clk 0:00:08.5]} 41. Nd5 {[%clk 0:01:20.3]} 41... Kh6 {[%clk
0:00:07.5]} 42. Rc7 {[%clk 0:01:18]} 42... a4 {[%clk 0:00:04.9]} 43. Rb7 {[%clk
0:01:16.4]} 43... b4 {[%clk 0:00:00.8]} 44. Rxb4 {[%clk 0:01:14.8]} 44... Kg7
{[%clk 0:00:00.3]} 45. Rxa4 {[%clk 0:01:13.7]} 1-0

[Event "Live Chess"]
[Site "Chess.com"]
[Date "2023.05.20"]
[Round "-"]
[White "JackCheetham1"]
[Black "toog"]
[Result "0-1"]
[WhiteElo "1707"]
[BlackElo "2635"]
[TimeControl "300"]
[EndTime "9:22:05 PDT"]
[Termination "toog won by resignation"]

1. e4 {[%clk 0:04:59.5]} 1... c6 {[%clk 0:04:58.8]} 2. d4 {[%clk 0:04:58.4]}
2... d5 {[%clk 0:04:58.7]} 3. Nd2 {[%clk 0:04:57]} 3... dxe4 {[%clk 0:04:57.7]}
4. Nxe4 {[%clk 0:04:56.6]} 4... Nf6 {[%clk 0:04:56.6]} 5. Nxf6+ {[%clk
0:04:55.8]} 5... exf6 {[%clk 0:04:56.5]} 6. Nf3 {[%clk 0:04:54.8]} 6... Bd6
{[%clk 0:04:56.1]} 7. c3 {[%clk 0:04:54]} 7... O-O {[%clk 0:04:55.5]} 8. Be2
{[%clk 0:04:52.9]} 8... Re8 {[%clk 0:04:55.1]} 9. O-O {[%clk 0:04:51.7]} 9...
Nd7 {[%clk 0:04:53.4]} 10. Be3 {[%clk 0:04:48.6]} 10... Qc7 {[%clk 0:04:52]} 11.
h3 {[%clk 0:04:46.7]} 11... Nb6 {[%clk 0:04:50.4]} 12. c4 {[%clk 0:04:38.8]}
12... c5 {[%clk 0:04:49.1]} 13. d5 {[%clk 0:04:36.9]} 13... Bf5 {[%clk
0:04:47.5]} 14. Qd2 {[%clk 0:04:29.1]} 14... Rad8 {[%clk 0:04:45.6]} 15. a4
{[%clk 0:04:25.8]} 15... Be4 {[%clk 0:04:43.7]} 16. Rfc1 {[%clk 0:04:05.1]}
16... h6 {[%clk 0:04:40.4]} 17. a5 {[%clk 0:04:02.1]} 17... Nc8 {[%clk
0:04:39.1]} 18. a6 {[%clk 0:03:51]} 18... b6 {[%clk 0:04:37.6]} 19. Ne1 {[%clk
0:03:49.8]} 19... Be5 {[%clk 0:04:20.1]} 20. Bf3 {[%clk 0:03:39.8]} 20... Nd6
{[%clk 0:04:16.9]} 21. Qe2 {[%clk 0:03:29.5]} 21... f5 {[%clk 0:04:13.8]} 22.
Nd3 {[%clk 0:03:23.1]} 22... Bf6 {[%clk 0:04:10.5]} 23. Bxe4 {[%clk 0:03:16.8]}
23... Rxe4 {[%clk 0:04:06.6]} 24. b3 {[%clk 0:03:03.1]} 24... Bxa1 {[%clk
0:04:02.5]} 25. Rxa1 {[%clk 0:03:00.4]} 25... Rde8 {[%clk 0:04:01.4]} 26. Qf3
{[%clk 0:02:57.3]} 26... Qe7 {[%clk 0:03:58.8]} 27. Nf4 {[%clk 0:02:51.1]} 27...
Qe5 {[%clk 0:03:53.3]} 28. Re1 {[%clk 0:02:39.6]} 28... Qc3 {[%clk 0:03:51.5]}
29. Re2 {[%clk 0:02:37.4]} 29... Qxb3 {[%clk 0:03:49.8]} 30. Qg3 {[%clk
0:02:30.2]} 30... Rxf4 {[%clk 0:03:00.7]} 31. Qxf4 {[%clk 0:02:13.9]} 31... Qd1+
{[%clk 0:02:58.3]} 32. Kh2 {[%clk 0:02:13.5]} 32... Qxe2 {[%clk 0:02:57.2]} 33.
Qxd6 {[%clk 0:02:09.7]} 33... Qxc4 {[%clk 0:02:54.4]} 34. Qd7 {[%clk 0:01:59.5]}
34... Rf8 {[%clk 0:02:48.2]} 35. Qxa7 {[%clk 0:01:51.4]} 35... Qxd5 {[%clk
0:02:46.2]} 36. Qxb6 {[%clk 0:01:46.5]} 36... c4 {[%clk 0:02:43.4]} 37. a7
{[%clk 0:01:38.8]} 37... Qe5+ {[%clk 0:02:39.5]} 38. g3 {[%clk 0:01:31.7]} 38...
Qd5 {[%clk 0:02:36.9]} 39. Bc5 {[%clk 0:01:08.1]} 39... Rc8 {[%clk 0:02:33.3]}
40. Qb8 {[%clk 0:00:57.4]} 40... Qxc5 {[%clk 0:02:22]} 41. a8=Q {[%clk
0:00:53.3]} 41... Rxb8 {[%clk 0:02:21.1]} 42. Qxb8+ {[%clk 0:00:52.1]} 42... Kh7
{[%clk 0:02:20.5]} 43. Qf4 {[%clk 0:00:45.9]} 43... c3 {[%clk 0:02:18.6]} 44.
Kg2 {[%clk 0:00:39.2]} 44... c2 {[%clk 0:02:17.2]} 45. Qc1 {[%clk 0:00:38]}
45... Qd5+ {[%clk 0:02:15.8]} 46. Kh2 {[%clk 0:00:33.4]} 46... Qd1 {[%clk
0:02:14]} 0-1

[Event "Live Chess"]
[Site "Chess.com"]
[Date "2023.05.20"]
[Round "-"]
[White "siddu198"]
[Black "GMHarry-youtube"]
[Result "1-0"]
[WhiteElo "1598"]
[BlackElo "2187"]
[TimeControl "300"]
[EndTime "9:22:16 PDT"]
[Termination "siddu198 won by checkmate"]

1. e4 {[%clk 0:04:58.2]} 1... c5 {[%clk 0:04:58.6]} 2. Nf3 {[%clk 0:04:56.9]}
2... d6 {[%clk 0:04:57.6]} 3. c3 {[%clk 0:04:53.1]} 3... Nf6 {[%clk 0:04:51.8]}
4. d3 {[%clk 0:04:51]} 4... g6 {[%clk 0:04:51.1]} 5. Be3 {[%clk 0:04:48]} 5...
Bg7 {[%clk 0:04:50.6]} 6. Nbd2 {[%clk 0:04:45]} 6... O-O {[%clk 0:04:50.5]} 7.
Nb3 {[%clk 0:04:44.4]} 7... Ng4 {[%clk 0:04:49.2]} 8. Qd2 {[%clk 0:04:41.1]}
8... Nc6 {[%clk 0:04:47.9]} 9. h3 {[%clk 0:04:38.6]} 9... Nge5 {[%clk
0:04:46.3]} 10. Nxe5 {[%clk 0:04:33.9]} 10... Nxe5 {[%clk 0:04:46.2]} 11. f4
{[%clk 0:04:27.7]} 11... Nc6 {[%clk 0:04:43.2]} 12. Be2 {[%clk 0:04:26.6]} 12...
e5 {[%clk 0:04:38.6]} 13. O-O {[%clk 0:04:17]} 13... f5 {[%clk 0:04:36.8]} 14.
fxe5 {[%clk 0:04:14.2]} 14... Nxe5 {[%clk 0:04:35.2]} 15. exf5 {[%clk
0:04:13.1]} 15... Bxf5 {[%clk 0:04:32.4]} 16. d4 {[%clk 0:04:04.7]} 16... cxd4
{[%clk 0:04:22.5]} 17. Bxd4 {[%clk 0:04:03.6]} 17... Qh4 {[%clk 0:04:18.9]} 18.
Rf4 {[%clk 0:03:45.2]} 18... Qe7 {[%clk 0:04:13.2]} 19. Rff1 {[%clk 0:03:28.8]}
19... Rae8 {[%clk 0:04:07]} 20. Rae1 {[%clk 0:03:17.9]} 20... Qh4 {[%clk
0:03:59.7]} 21. Rf4 {[%clk 0:03:01.5]} 21... Qe7 {[%clk 0:03:50.9]} 22. Rff1
{[%clk 0:02:59.6]} 22... Nc6 {[%clk 0:03:43.6]} 23. Bc4+ {[%clk 0:02:51.7]}
23... Be6 {[%clk 0:03:39.4]} 24. Rxf8+ {[%clk 0:02:34.8]} 24... Qxf8 {[%clk
0:03:33]} 25. Bxe6+ {[%clk 0:02:30.5]} 25... Kh8 {[%clk 0:03:31.7]} 26. Bxg7+
{[%clk 0:02:25.1]} 26... Qxg7 {[%clk 0:03:30.5]} 27. Bc4 {[%clk 0:02:11.8]}
27... Rf8 {[%clk 0:03:27.4]} 28. Nd4 {[%clk 0:02:00.4]} 28... Ne5 {[%clk
0:03:24.7]} 29. Bb3 {[%clk 0:01:41]} 29... Qe7 {[%clk 0:03:07.8]} 30. Nf3 {[%clk
0:01:16.7]} 30... Nxf3+ {[%clk 0:02:43.2]} 31. gxf3 {[%clk 0:01:12.1]} 31... Qd7
{[%clk 0:02:37]} 32. Qd4+ {[%clk 0:01:05.1]} 32... Qg7 {[%clk 0:02:35]} 33.
Qxg7+ {[%clk 0:01:00.4]} 33... Kxg7 {[%clk 0:02:34.9]} 34. Re7+ {[%clk
0:00:59.2]} 34... Kh6 {[%clk 0:02:32.7]} 35. Kg2 {[%clk 0:00:51.7]} 35... Rb8
{[%clk 0:02:29.7]} 36. Rd7 {[%clk 0:00:49.3]} 36... a5 {[%clk 0:02:26.4]} 37. a4
{[%clk 0:00:42.8]} 37... b5 {[%clk 0:02:24.6]} 38. axb5 {[%clk 0:00:31.8]} 38...
Rxb5 {[%clk 0:02:23.2]} 39. Bg8 {[%clk 0:00:30]} 39... Rxb2+ {[%clk 0:02:21.5]}
40. Kg3 {[%clk 0:00:29]} 40... Kg5 {[%clk 0:02:16.8]} 41. Rxh7 {[%clk
0:00:26.9]} 41... a4 {[%clk 0:02:15.2]} 42. Rd7 {[%clk 0:00:25.4]} 42... a3
{[%clk 0:02:12.4]} 43. Rxd6 {[%clk 0:00:24.3]} 43... Kf5 {[%clk 0:02:05]} 44.
Ra6 {[%clk 0:00:22.5]} 44... Rb1 {[%clk 0:02:00.6]} 45. Bf7 {[%clk 0:00:20.1]}
45... g5 {[%clk 0:01:58.4]} 46. Bg6+ {[%clk 0:00:18.6]} 46... Ke5 {[%clk
0:01:53.7]} 47. Bxb1 {[%clk 0:00:18.5]} 47... Kd5 {[%clk 0:01:53.1]} 48. Rxa3
{[%clk 0:00:17.5]} 48... Kc4 {[%clk 0:01:53]} 49. Ra8 {[%clk 0:00:16.6]} 49...
Kxc3 {[%clk 0:01:52.2]} 50. Rg8 {[%clk 0:00:16.3]} 50... Kd4 {[%clk 0:01:52.1]}
51. Rxg5 {[%clk 0:00:15.7]} 51... Ke3 {[%clk 0:01:50.6]} 52. Rg4 {[%clk
0:00:15.6]} 52... Ke2 {[%clk 0:01:48.8]} 53. h4 {[%clk 0:00:15.5]} 53... Kf1
{[%clk 0:01:48.7]} 54. h5 {[%clk 0:00:15.4]} 54... Kg1 {[%clk 0:01:48.6]} 55. h6
{[%clk 0:00:15.3]} 55... Kh1 {[%clk 0:01:47.9]} 56. h7 {[%clk 0:00:15.2]} 56...
Kg1 {[%clk 0:01:47.6]} 57. h8=Q {[%clk 0:00:15.1]} 57... Kf1 {[%clk 0:01:47.5]}
58. Qh2 {[%clk 0:00:13.1]} 58... Ke1 {[%clk 0:01:46.4]} 59. Re4+ {[%clk
0:00:12.2]} 59... Kd1 {[%clk 0:01:45.2]} 60. Qg1+ {[%clk 0:00:11.3]} 60... Kd2
{[%clk 0:01:44]} 61. Qe1# {[%clk 0:00:10]} 1-0

[Event "Live Chess"]
[Site "Chess.com"]
[Date "2023.05.20"]
[Round "-"]
[White "ranvir123"]
[Black "Alan_Richardson"]
[Result "0-1"]
[WhiteElo "838"]
[BlackElo "1715"]
[TimeControl "300"]
[EndTime "9:22:20 PDT"]
[Termination "Alan_Richardson won by checkmate"]

1. e4 {[%clk 0:04:57.9]} 1... c5 {[%clk 0:04:58.4]} 2. Nc3 {[%clk 0:04:56.1]}
2... Nc6 {[%clk 0:04:53.6]} 3. Nf3 {[%clk 0:04:54.5]} 3... g6 {[%clk 0:04:44.8]}
4. d4 {[%clk 0:04:53.4]} 4... cxd4 {[%clk 0:04:43.2]} 5. Nxd4 {[%clk 0:04:52.1]}
5... Bg7 {[%clk 0:04:42.8]} 6. Nxc6 {[%clk 0:04:50.2]} 6... bxc6 {[%clk
0:04:41]} 7. Bc4 {[%clk 0:04:45.1]} 7... e6 {[%clk 0:04:36.6]} 8. O-O {[%clk
0:04:39.8]} 8... Ne7 {[%clk 0:04:33.1]} 9. Bg5 {[%clk 0:04:37.8]} 9... O-O
{[%clk 0:04:31.3]} 10. Qd6 {[%clk 0:04:30.2]} 10... f6 {[%clk 0:04:22.9]} 11.
Bh4 {[%clk 0:04:04.4]} 11... Kh8 {[%clk 0:04:20.5]} 12. e5 {[%clk 0:04:01.9]}
12... Nf5 {[%clk 0:04:14.4]} 13. exf6 {[%clk 0:03:48.2]} 13... Bxf6 {[%clk
0:04:01.6]} 14. Bxf6+ {[%clk 0:03:30.9]} 14... Qxf6 {[%clk 0:04:00.4]} 15. Qd3
{[%clk 0:03:24.9]} 15... d5 {[%clk 0:03:54.8]} 16. Bb3 {[%clk 0:03:19.5]} 16...
e5 {[%clk 0:03:38.5]} 17. Ne2 {[%clk 0:02:51.6]} 17... a5 {[%clk 0:03:24.7]} 18.
Ng3 {[%clk 0:02:47]} 18... Ba6 {[%clk 0:03:21.1]} 19. c4 {[%clk 0:02:42.3]}
19... e4 {[%clk 0:03:05.1]} 20. Qe2 {[%clk 0:02:34.7]} 20... Nd4 {[%clk
0:02:54.4]} 21. Qd2 {[%clk 0:02:16.9]} 21... a4 {[%clk 0:02:38.2]} 22. Rfd1
{[%clk 0:02:05.1]} 22... axb3 {[%clk 0:02:23.5]} 23. Qxd4 {[%clk 0:02:00.8]}
23... Bxc4 {[%clk 0:02:15.9]} 24. Qxf6+ {[%clk 0:01:52.6]} 24... Rxf6 {[%clk
0:02:13.7]} 25. axb3 {[%clk 0:01:45.4]} 25... Rxa1 {[%clk 0:02:06.6]} 26. Rxa1
{[%clk 0:01:44]} 26... Bxb3 {[%clk 0:02:05.4]} 27. Ra6 {[%clk 0:01:40]} 27...
Bc4 {[%clk 0:01:59.4]} 28. Rb6 {[%clk 0:01:33]} 28... Kg7 {[%clk 0:01:50.4]} 29.
Nf1 {[%clk 0:01:26.4]} 29... Bxf1 {[%clk 0:01:35]} 30. Kxf1 {[%clk 0:01:24.7]}
30... c5 {[%clk 0:01:33]} 31. Rb5 {[%clk 0:01:20.4]} 31... Rc6 {[%clk 0:01:29]}
32. b4 {[%clk 0:01:13.9]} 32... cxb4 {[%clk 0:01:12.8]} 33. Rxb4 {[%clk
0:01:10.8]} 33... Kf6 {[%clk 0:01:09.8]} 34. f3 {[%clk 0:01:06.2]} 34... Ke5
{[%clk 0:01:07.1]} 35. Rb5 {[%clk 0:01:02.2]} 35... Kd4 {[%clk 0:01:01.7]} 36.
fxe4 {[%clk 0:01:00.9]} 36... dxe4 {[%clk 0:00:59.5]} 37. Rb7 {[%clk 0:00:58.2]}
37... Rc2 {[%clk 0:00:53.6]} 38. Rxh7 {[%clk 0:00:54.7]} 38... Ke3 {[%clk
0:00:52.1]} 39. Re7 {[%clk 0:00:52.9]} 39... Rc1# {[%clk 0:00:48.6]} 0-1

[Event "Live Chess"]
[Site "Chess.com"]
[Date "2023.05.20"]
[Round "-"]
[White "JashonTOGM"]
[Black "NatashaRegan"]
[Result "0-1"]
[WhiteElo "1058"]
[BlackElo "1842"]
[TimeControl "300"]
[EndTime "9:22:39 PDT"]
[Termination "NatashaRegan won by checkmate"]

1. d4 {[%clk 0:04:56.2]} 1... f5 {[%clk 0:04:57.9]} 2. h3 {[%clk 0:04:36.9]}
2... Nf6 {[%clk 0:04:47.4]} 3. g4 {[%clk 0:04:34.3]} 3... fxg4 {[%clk
0:04:44.3]} 4. hxg4 {[%clk 0:04:28.5]} 4... Nxg4 {[%clk 0:04:42.8]} 5. Qd3
{[%clk 0:04:20.7]} 5... d5 {[%clk 0:04:36.2]} 6. Rxh7 {[%clk 0:04:10.3]} 6...
Rxh7 {[%clk 0:04:01.9]} 7. Qg6+ {[%clk 0:04:07]} 7... Kd7 {[%clk 0:04:00]} 8.
Qxg4+ {[%clk 0:04:05.6]} 8... Kc6 {[%clk 0:03:58.9]} 9. Qg6+ {[%clk 0:04:02.1]}
9... Qd6 {[%clk 0:03:50.9]} 10. Qxh7 {[%clk 0:04:00.4]} 10... Bg4 {[%clk
0:03:42.3]} 11. Nc3 {[%clk 0:03:54.9]} 11... Nd7 {[%clk 0:03:38.7]} 12. e3
{[%clk 0:03:51.4]} 12... Nf6 {[%clk 0:03:37.1]} 13. Bb5+ {[%clk 0:03:48.8]}
13... Kb6 {[%clk 0:03:33.4]} 14. Qd3 {[%clk 0:03:39.6]} 14... a6 {[%clk
0:03:31]} 15. Ba4 {[%clk 0:03:31.7]} 15... Rd8 {[%clk 0:03:19.8]} 16. Nb5 {[%clk
0:03:29]} 16... axb5 {[%clk 0:03:16.1]} 17. Qxb5+ {[%clk 0:03:27.7]} 17... Ka7
{[%clk 0:03:15.3]} 18. Qa5+ {[%clk 0:03:25.1]} 18... Kb8 {[%clk 0:03:14.3]} 19.
Bd2 {[%clk 0:03:16.2]} 19... Ne4 {[%clk 0:03:11.9]} 20. Bb4 {[%clk 0:03:11.8]}
20... Qf6 {[%clk 0:03:09.3]} 21. f4 {[%clk 0:02:47.2]} 21... Qh4+ {[%clk
0:03:04]} 22. Kf1 {[%clk 0:02:44.7]} 22... Qf2# {[%clk 0:03:03]} 0-1

[Event "Live Chess"]
[Site "Chess.com"]
[Date "2023.05.20"]
[Round "-"]
[White "xx_blindpuffin_xx"]
[Black "stevefairhurst"]
[Result "1-0"]
[WhiteElo "2193"]
[BlackElo "525"]
[TimeControl "300"]
[EndTime "9:22:43 PDT"]
[Termination "xx_blindpuffin_xx won by checkmate"]

1. d4 {[%clk 0:04:58.5]} 1... d5 {[%clk 0:04:59.1]} 2. Bf4 {[%clk 0:04:56.9]}
2... Nf6 {[%clk 0:04:51.8]} 3. e3 {[%clk 0:04:55.9]} 3... Ne4 {[%clk 0:04:49.9]}
4. c4 {[%clk 0:04:55.1]} 4... e5 {[%clk 0:04:47.4]} 5. Bxe5 {[%clk 0:04:46.3]}
5... Qh4 {[%clk 0:04:40.4]} 6. Bg3 {[%clk 0:04:40.3]} 6... Qf6 {[%clk
0:04:32.4]} 7. Nc3 {[%clk 0:04:33.7]} 7... Bd6 {[%clk 0:04:25.7]} 8. Nxd5 {[%clk
0:04:24]} 8... Qf5 {[%clk 0:04:19.9]} 9. Nf3 {[%clk 0:04:19]} 9... Bxg3 {[%clk
0:04:17.3]} 10. hxg3 {[%clk 0:04:16.9]} 10... Be6 {[%clk 0:04:13.1]} 11. Nxc7+
{[%clk 0:04:15.7]} 11... Kd7 {[%clk 0:04:11.1]} 12. Nxa8 {[%clk 0:04:14.3]}
12... Nc6 {[%clk 0:04:08.6]} 13. d5 {[%clk 0:04:11.3]} 13... Bxd5 {[%clk
0:03:59.5]} 14. cxd5 {[%clk 0:04:09.7]} 14... Nb4 {[%clk 0:03:58.2]} 15. Qa4+
{[%clk 0:04:07.3]} 15... b5 {[%clk 0:03:51.7]} 16. Bxb5+ {[%clk 0:04:02.8]}
16... Kd6 {[%clk 0:03:49.1]} 17. Qxb4+ {[%clk 0:04:01.2]} 17... Kxd5 {[%clk
0:03:47.2]} 18. O-O-O+ {[%clk 0:03:59.1]} 18... Ke6 {[%clk 0:03:44.8]} 19. Nd4+
{[%clk 0:03:49.4]} 19... Kd5 {[%clk 0:03:34.5]} 20. Nxf5+ {[%clk 0:03:48.1]}
20... Ke5 {[%clk 0:03:31.1]} 21. Qd4+ {[%clk 0:03:39.5]} 21... Kxf5 {[%clk
0:03:29.2]} 22. Qd5+ {[%clk 0:03:34.9]} 22... Kg4 {[%clk 0:03:24.4]} 23. Qxe4+
{[%clk 0:03:34.1]} 23... Kg5 {[%clk 0:03:22.9]} 24. Rd5+ {[%clk 0:03:33.7]}
24... Kf6 {[%clk 0:03:21.1]} 25. Rd6+ {[%clk 0:03:30.9]} 25... Kg5 {[%clk
0:03:18.6]} 26. Qf4# {[%clk 0:03:30.3]} 1-0

[Event "Live Chess"]
[Site "Chess.com"]
[Date "2023.05.20"]
[Round "-"]
[White "sup3rm0nk3y"]
[Black "GEMdzq"]
[Result "0-1"]
[WhiteElo "1335"]
[BlackElo "2346"]
[TimeControl "300"]
[EndTime "9:22:45 PDT"]
[Termination "GEMdzq won by resignation"]

1. b3 {[%clk 0:04:56.8]} 1... e5 {[%clk 0:04:57.6]} 2. Bb2 {[%clk 0:04:55.3]}
2... Nc6 {[%clk 0:04:55.1]} 3. e3 {[%clk 0:04:47.7]} 3... a6 {[%clk 0:04:53.6]}
4. f4 {[%clk 0:04:38.2]} 4... exf4 {[%clk 0:04:38]} 5. exf4 {[%clk 0:04:38.1]}
5... Nf6 {[%clk 0:04:34]} 6. d3 {[%clk 0:04:25.2]} 6... Bb4+ {[%clk 0:04:31]} 7.
c3 {[%clk 0:04:05.8]} 7... Be7 {[%clk 0:04:16.1]} 8. h3 {[%clk 0:03:55.6]} 8...
O-O {[%clk 0:04:11.6]} 9. Nd2 {[%clk 0:03:51.8]} 9... d5 {[%clk 0:04:09.8]} 10.
g4 {[%clk 0:03:42]} 10... Re8 {[%clk 0:04:07.8]} 11. Ne2 {[%clk 0:03:39.7]}
11... Nxg4 {[%clk 0:03:56.5]} 12. Nf3 {[%clk 0:03:18]} 12... Ne3 {[%clk
0:03:37.3]} 13. Qd2 {[%clk 0:03:04.5]} 13... Bh4+ {[%clk 0:03:35]} 14. Nxh4
{[%clk 0:02:35.7]} 14... Qxh4+ {[%clk 0:03:34.9]} 0-1

[Event "Live Chess"]
[Site "Chess.com"]
[Date "2023.05.20"]
[Round "-"]
[White "guptarayan"]
[Black "BMT6"]
[Result "1-0"]
[WhiteElo "588"]
[BlackElo "584"]
[TimeControl "300"]
[EndTime "9:22:45 PDT"]
[Termination "guptarayan won by checkmate"]

1. e4 {[%clk 0:04:58.4]} 1... d5 {[%clk 0:04:59.2]} 2. exd5 {[%clk 0:04:56.8]}
2... Qxd5 {[%clk 0:04:58.6]} 3. Nc3 {[%clk 0:04:54.7]} 3... Qa5 {[%clk
0:04:57.7]} 4. d4 {[%clk 0:04:53]} 4... Nf6 {[%clk 0:04:57.3]} 5. Nf3 {[%clk
0:04:51.6]} 5... Bf5 {[%clk 0:04:53.8]} 6. Bc4 {[%clk 0:04:47.5]} 6... e6 {[%clk
0:04:47.8]} 7. O-O {[%clk 0:04:45.1]} 7... Bb4 {[%clk 0:04:36.2]} 8. Bd2 {[%clk
0:04:39.7]} 8... c6 {[%clk 0:04:30.8]} 9. a3 {[%clk 0:04:37.5]} 9... Bxc3 {[%clk
0:04:26.8]} 10. Bxc3 {[%clk 0:04:35.9]} 10... Qc7 {[%clk 0:04:14.5]} 11. Re1
{[%clk 0:04:29.8]} 11... Ne4 {[%clk 0:04:11]} 12. Nh4 {[%clk 0:04:27.6]} 12...
Nxc3 {[%clk 0:03:58.7]} 13. bxc3 {[%clk 0:04:24.1]} 13... Be4 {[%clk 0:03:54.6]}
14. Rxe4 {[%clk 0:04:21]} 14... f5 {[%clk 0:03:43.2]} 15. Rxe6+ {[%clk
0:04:18.4]} 15... Kf7 {[%clk 0:03:39]} 16. Rxc6+ {[%clk 0:04:15.6]} 16... Ke7
{[%clk 0:03:30.3]} 17. Rxc7+ {[%clk 0:04:13.9]} 17... Kd8 {[%clk 0:03:28.2]} 18.
Rxg7 {[%clk 0:04:11.8]} 18... Re8 {[%clk 0:03:25.4]} 19. Bd5 {[%clk 0:04:06.3]}
19... Nc6 {[%clk 0:03:23.4]} 20. Bxc6 {[%clk 0:04:04.5]} 20... bxc6 {[%clk
0:03:22.3]} 21. d5 {[%clk 0:04:03.2]} 21... cxd5 {[%clk 0:03:20.4]} 22. Qxd5+
{[%clk 0:04:01.9]} 22... Kc8 {[%clk 0:03:19.7]} 23. Qxa8# {[%clk 0:04:00.6]} 1-0